[Event "TUR-ch Veterans 2020"]
[Site "Antalya-Belek"]
[Date "2020.01.24"]
[Round "8"]
[White "Muratoglu, Salih"]
[Black "Bagci, Hikmet"]
[Result "1-0"]
[ECO "E52"]
[WhiteElo "1967"]
[BlackElo "1603"]
[Annotator "NA RC"]
[PlyCount "109"]
[EventDate "2020.01.19"]
[EventCountry "TUR"]
[SourceTitle "playchess.com"]
[Source "ChessBase"]
[SourceQuality "1"]
[TimeControl "5400+30"]

1. d4 {[%emt 0:00:30]} e6 {[%emt 0:00:30]} 2. c4 {[%emt 0:00:30]} b6 {[%emt 0:00:30]} 3. Nf3 {[%emt 0:00:30]} Bb7 {[%emt 0:00:00]} 4. Nc3 {[%emt 0:00:00]} Nf6 {[%emt 0:01:00]} 5. e3 {[%emt 0:00:00]} Bb4 {[%emt 0:03:30]} 6. Bd2 {[%emt 0:03:30]} O-O {[%emt 0:02:30]} 7. Bd3 {[%emt 0:00:30]} d5 {[%emt 0:01:30]} 8. a3 {[%emt 0:01:30] E52: Nimzo-Indian: Rubinstein: 4...0-0 5 Nf3 d5 6 Bd3 b6} (8. cxd5 exd5 9. O-O Re8 10. Rc1 Bf8 11. Ne5 c5 12. f4 Nc6 13. Nxd5 Qxd5 14. Bc4 Qxg2+ 15. Kxg2 Nxe5+ 16. Kg1 Nxc4 17. Rxc4 {0-1 (142) Bluebaum,M (2644)-Karjakin,S (2754) Moscow 2019}) 8... Bxc3 {[%emt 0:01:30]} 9. Bxc3 {[%emt 0:00:30]} Nbd7 {[%emt 0:01:30]} 10. b4 {[%emt 0:00:30]} dxc4 $146 {[%emt 0:04:30]} ({Predecessor:} 10... c5 11. Rc1 Rc8 12. dxc5 bxc5 13. b5 dxc4 14. Bxc4 {1-0 (42) Lorincz,R (1710)-Vilagos,E (1569) Senta 2010}) 11. Bxc4 {[%emt 0:00:30]} Bd5 {[%emt 0:02:30]} 12. Be2 {[%emt 0:01:30]} c5 {[%emt 0:00:30]} 13. O-O {[%emt 0:00:30]} Qe7 {[%emt 0:01:30]} 14. Rc1 {[%emt 0:00:30]} Ne4 {[%emt 0:01:30]} 15. Be1 {[%emt 0:03:30]} Rfc8 {[%emt 0:00:30]} 16. Ba6 {[%emt 0:01:30]} Rc7 {[%emt 0:00:30]} 17. Nd2 {[%emt 0:02:30]} Nb8 {[%emt 0:03:30]} 18. Bd3 {[%emt 0:00:30]} Nxd2 {[%emt 0:04:30]} 19. Qxd2 {[%emt 0:01:30]} cxd4 {[%emt 0:09:30]} 20. exd4 {[%emt 0:01:30]} a5 {[%emt 0:05:30]} 21. f3 {[%emt 0:02:30]} axb4 {[%emt 0:00:30]} 22. Bg3 {[%emt 0:00:30]} Rc3 {[%emt 0:05:30]} 23. axb4 {[%emt 0:01:30]} Rxc1 {[%emt 0:01:30]} 24. Rxc1 {[%emt 0:00:00]} Nc6 {[%emt 0:00:30]} 25. b5 {[%emt 0:04:00]} Nxd4 {[%emt 0:07:30]} 26. Qe3 {[%emt 0:03:30]} Nb3 $11 {[%emt 0:02:30]} 27. Rc7 {[%emt 0:01:30]} Qb4 {[%emt 0:00:30]} 28. Qxb6 {[%emt 0:02:30]} Qd2 {[%emt 0:02:30]} 29. Bf1 {[%emt 0:02:30]} h6 {[%emt 0:02:30]} 30. Be5 {[%emt 0:03:30]} Qe1 {[%emt 0:02:30]} 31. Bc3 {[%emt 0:03:30]} Qd1 {[%emt 0:01:30]} 32. Qe3 {[%emt 0:01:30]} Qb1 {[%emt 0:06:30]} 33. b6 {[%emt 0:01:30]} Na5 {[%emt 0:05:30]} 34. Qe5 {[%emt 0:02:30]} Qg6 {[%emt 0:04:17]} 35. Bd3 {[%emt 0:01:30]} Qf6 {[%emt 0:05:18]} 36. Qe1 {[%emt 0:03:30]} Qf4 {[%emt 0:01:01]} 37. Be5 {[%emt 0:02:30]} Qa4 {[%emt 0:01:02]} 38. Qc1 {[%emt 0:02:30]} Qe8 {[%emt 0:03:33]} 39. Bb1 {[%emt 0:02:30]} Qb8 {[%emt 0:01:28]} 40. Bd4 {[%emt 0:01:30]} Nb3 {[%emt 0:01:06]} 41. Qc2 {[%emt 0:00:30]} g6 {[%emt 0:00:48]} 42. Rxf7 {[%emt 0:00:30]} Kxf7 {[%emt 0:00:40]} 43. Qxg6+ {[%emt 0:00:30]} Ke7 {[%emt 0:00:23]} 44. Qg7+ {[%emt 0:02:30]} Kd8 {[%emt 0:00:31]} 45. Be3 {[%emt 0:09:30]} Qb7 {[%emt 0:00:38]} 46. Qf6+ {[%emt 0:01:30]} Kd7 {[%emt 0:00:23]} 47. Bd3 {[%emt 0:00:30]} Ra1+ {[%emt 0:02:00]} 48. Kf2 {[%emt 0:00:30]} Ra2+ {[%emt 0:00:20]} 49. Kg3 {[%emt 0:00:30]} Kc6 {[%emt 0:01:26]} 50. Qc3+ {[%emt 0:01:30]} Kd6 {[%emt 0:02:17]} 51. Bf4+ {[%emt 0:00:30]} Ke7 {[%emt 0:00:30]} 52. Qg7+ {[%emt 0:00:30]} Kd8 {[%emt 0:00:57]} 53. Bc7+ {[%emt 0:00:30]} Kc8 {[%emt 0:00:26]} 54. Qf8+ {[%emt 0:01:30]} Kd7 {[%emt 0:00:02]} 55. Qf7+ {[%emt 0:00:00]} 1-0

[Event "TUR-ch Veterans 2020"]
[Site "Antalya-Belek"]
[Date "2020.01.24"]
[Round "8"]
[White "Guner, Bulent"]
[Black "Tasan, Mehmet Askin"]
[Result "1-0"]
[ECO "E18"]
[WhiteElo "1964"]
[BlackElo "1877"]
[Annotator "NA RC"]
[PlyCount "43"]
[EventDate "2020.01.19"]
[EventCountry "TUR"]
[SourceTitle "playchess.com"]
[Source "ChessBase"]
[SourceQuality "1"]
[TimeControl "5400+30"]

{[%evp 13,43,16,29,5,22,4,17,14,7,-31,254,260,243,274,270,32767,32767,32767,32767,32767,329,269,272,32767,281,32767,376,289,300,306,314,316]} 1. d4 {[%emt 0:00:30]} Nf6 {[%emt 0:00:30]} 2. Nf3 {[%emt 0:00:30]} d5 {[%emt 0:01:30]} 3. c4 {[%emt 0:01:30]} e6 {[%emt 0:00:30]} 4. Nc3 {[%emt 0:00:30]} Be7 {[%emt 0:00:30]} 5. g3 {[%emt 0:09:30]} O-O {[%emt 0:00:30]} 6. Bg2 {[%emt 0:00:30]} b6 {[%emt 0:03:30]} 7. O-O {[%emt 0:03:30]} Bb7 {[%emt 0:00:30]} 8. cxd5 {[%emt 0:02:30]} Nxd5 {[%emt 0:02:30]} 9. Re1 {[%emt 0:07:30] E18: Queen's Indian: Old Main Line (4 g3 Bb7 5 Bg2 Be7 6 0-0 0-0 7 Nc3)} Nxc3 {[%emt 0:01:30]} 10. bxc3 {[%emt 0:00:00]} c5 {[%emt 0:00:30]} 11. Qd3 $146 {[%emt 0:03:00]} ({Predecessor:} 11. e4 cxd4 12. cxd4 Nc6 13. Bb2 Na5 14. Qe2 Rc8 15. Ne5 Bb4 16. Red1 Qe7 17. Rac1 Rfd8 18. h4 h6 19. Qh5 Bd6 20. Ng4 Nc4 21. Ba1 {1-0 (52) Ju,W (2579)-Gunina,V (2525) Doha 2016}) 11... cxd4 $2 {[%emt 0:02:30]} (11... Nc6 $11 {and Black is okay.}) 12. Ng5 $1 {[%emt 0:01:30] Discovered Attack} ({Inferior is} 12. cxd4 Nc6 $11) 12... Bxg5 {[%emt 0:04:30]} 13. Bxb7 {[%emt 0:00:30]} Nd7 {[%emt 0:00:30]} 14. Bxa8 {[%emt 0:02:30]} Bxc1 {[%emt 0:00:30]} 15. Raxc1 {[%emt 0:00:30]} Qxa8 {[%emt 0:00:30]} 16. cxd4 {[%emt 0:00:00]} Rd8 {[%emt 0:01:30]} 17. f3 {[%emt 0:05:00]} h5 {[%emt 0:03:30]} 18. Red1 {[%emt 0:04:30]} h4 {[%emt 0:01:30]} 19. Kg2 {[%emt 0:02:30]} Ne5 {[%emt 0:08:30]} 20. Qe3 {[%emt 0:07:30]} Ng4 {[%emt 0:02:30]} 21. Qg5 {[%emt 0:05:30]} h3+ {[%emt 0:00:30]} 22. Kg1 $18 {[%emt 0:00:30]} ({Weaker is} 22. Kxh3 Nf2+ 23. Kg2 Nxd1 $16) 1-0

[Event "TUR-ch Veterans 2020"]
[Site "Antalya-Belek"]
[Date "2020.01.24"]
[Round "8"]
[White "Cicek, Cemil"]
[Black "Ozmen, Halil Nejat"]
[Result "1/2-1/2"]
[ECO "D02"]
[WhiteElo "1940"]
[BlackElo "1789"]
[Annotator "NA RC"]
[PlyCount "122"]
[EventDate "2020.01.19"]
[EventCountry "TUR"]
[SourceTitle "playchess.com"]
[Source "ChessBase"]
[SourceQuality "1"]
[TimeControl "5400+30"]

1. d4 {[%emt 0:00:30]} d5 {[%emt 0:00:30]} 2. Nf3 {[%emt 0:00:30]} Nf6 {[%emt 0:00:00]} 3. Bf4 {[%emt 0:00:00]} Bf5 {[%emt 0:00:00]} 4. e3 {[%emt 0:00:00]} e6 {[%emt 0:00:30]} 5. c3 {[%emt 0:00:30]} Nbd7 {[%emt 0:02:30]} 6. Nbd2 {[%emt 0:00:30] D02: 1 d4 d5 2 Nf3 sidelines, including 2...Nf6 3 g3 and 2...Nf6 3 Bf4} (6. Qb3 Qc8 7. c4 c6 8. h3 Be7 9. Nc3 O-O 10. Rc1 a6 11. cxd5 exd5 12. g4 Be6 13. Ng5 b5 {0-1 (42) Mammadov,A (2404)-Filippov,A (2637) Nakhchivan 2012}) 6... h6 {[%emt 0:00:30]} 7. b4 $146 {[%emt 0:00:30]} ({Predecessor:} 7. h3 Ne4 8. Nxe4 Bxe4 9. Nd2 Bg6 10. Be2 Be7 {1-0 (33) Doskocil,K (2188)-Berchtold,G (1934) Austria 2019}) 7... Bd6 {[%emt 0:02:30]} 8. Bg3 {[%emt 0:00:30]} O-O {[%emt 0:00:30]} 9. Be2 {[%emt 0:00:30]} Ne4 {[%emt 0:02:30]} 10. Nxe4 {[%emt 0:01:30]} Bxe4 {[%emt 0:00:30]} 11. O-O {[%emt 0:01:30]} Bxg3 {[%emt 0:00:30]} 12. hxg3 {[%emt 0:00:30]} b6 {[%emt 0:03:30]} 13. b5 {[%emt 0:00:30]} Qe7 {[%emt 0:00:30]} 14. Nd2 {[%emt 0:01:30]} Bg6 {[%emt 0:00:30]} 15. f4 {[%emt 0:00:30]} (15. c4 $11) 15... Nf6 {[%emt 0:01:30]} 16. Qb3 {[%emt 0:00:30]} Ne4 {[%emt 0:00:30]} 17. Nxe4 {[%emt 0:00:30]} Bxe4 {[%emt 0:00:30]} 18. a4 {[%emt 0:00:30]} Qd6 {[%emt 0:01:30]} 19. Rac1 {[%emt 0:01:30]} c5 {[%emt 0:00:30]} 20. bxc6 {[%emt 0:01:30]} Qxc6 {[%emt 0:00:00]} 21. Ba6 {[%emt 0:00:30]} Rad8 {[%emt 0:01:00]} 22. Rf2 {[%emt 0:01:30]} Qd6 {[%emt 0:00:30]} 23. Qb4 {[%emt 0:01:30]} Qb8 {[%emt 0:03:30]} 24. c4 {[%emt 0:01:30]} Bd3 {[%emt 0:04:30]} 25. Rc3 {[%emt 0:01:30]} dxc4 {[%emt 0:01:30]} 26. Bxc4 {[%emt 0:00:30]} Bxc4 {[%emt 0:00:30]} 27. Rxc4 {[%emt 0:00:30]} Rc8 {[%emt 0:03:30]} 28. Rfc2 {[%emt 0:00:30]} Qb7 {[%emt 0:00:30]} 29. Kf2 {[%emt 0:02:30]} Rxc4 {[%emt 0:02:30]} 30. Qxc4 {[%emt 0:00:30]} Qe4 {[%emt 0:08:30]} 31. Qc6 {[%emt 0:04:30]} Qd3 {[%emt 0:01:30]} 32. Qc4 {[%emt 0:01:30]} Qf5 {[%emt 0:02:30]} 33. Rd2 {[%emt 0:01:30]} Qa5 {[%emt 0:01:30]} 34. Ke2 {[%emt 0:00:30]} Rd8 {[%emt 0:02:30]} 35. e4 {[%emt 0:02:30]} Qh5+ {[%emt 0:04:30]} 36. Kf2 $11 {[%emt 0:00:30]} Qa5 {[%emt 0:13:30]} 37. Rc2 {[%emt 0:05:30]} g5 {[%emt 0:00:30]} 38. Kf3 {[%emt 0:02:30]} gxf4 {[%emt 0:00:00]} 39. gxf4 {[%emt 0:00:30]} Qh5+ {[%emt 0:01:00]} 40. Ke3 {[%emt 0:02:30]} Qd1 {[%emt 0:01:30]} 41. Rd2 {[%emt 0:04:30]} Qe1+ {[%emt 0:01:30]} 42. Re2 {[%emt 0:02:30]} Qg3+ {[%emt 0:00:00]} 43. Kd2 {[%emt 0:00:30]} Qxf4+ {[%emt 0:00:00]} 44. Ke1 {[%emt 0:02:30]} Kh7 {[%emt 0:00:30]} 45. Qc3 {[%emt 0:01:30]} Rg8 {[%emt 0:00:30]} 46. d5 {[%emt 0:02:30]} Rg3 {[%emt 0:02:30]} 47. Qc2 {[%emt 0:03:30]} Qe5 {[%emt 0:00:30]} 48. Kf2 {[%emt 0:01:30]} Rc3 {[%emt 0:00:30]} 49. Qd2 {[%emt 0:01:30]} Qg3+ {[%emt 0:03:30]} 50. Kg1 {[%emt 0:01:30]} Rd3 {[%emt 0:01:30]} 51. Qc2 {[%emt 0:00:30]} Kg7 {[%emt 0:00:30]} 52. dxe6 {[%emt 0:01:30]} fxe6 {[%emt 0:01:30]} 53. Rf2 {[%emt 0:04:30]} Qd6 {[%emt 0:00:30]} 54. Rf1 {[%emt 0:02:30]} Rd2 {[%emt 0:02:30]} 55. Qb3 {[%emt 0:00:30]} Rd3 {[%emt 0:04:30]} 56. Qa2 {[%emt 0:01:30]} Qd4+ {[%emt 0:00:30]} 57. Kh1 {[%emt 0:00:00]} Qxe4 {[%emt 0:00:30]} 58. Qf2 {[%emt 0:00:00]} Rd7 {[%emt 0:02:56]} 59. Qf8+ {[%emt 0:01:30]} Kh7 {[%emt 0:02:14]} 60. Rf7+ {[%emt 0:03:30]} Rxf7 {[%emt 0:00:03]} 61. Qxf7+ {[%emt 0:00:30]} Kh8 {[%emt 0:00:01]} 1/2-1/2

[Event "TUR-ch Veterans 2020"]
[Site "Antalya-Belek"]
[Date "2020.01.24"]
[Round "8"]
[White "Yasin, Hur"]
[Black "Yavic, Adnan"]
[Result "1-0"]
[ECO "D00"]
[WhiteElo "1936"]
[BlackElo "1590"]
[Annotator "NA RC"]
[PlyCount "83"]
[EventDate "2020.01.19"]
[EventCountry "TUR"]
[SourceTitle "playchess.com"]
[Source "ChessBase"]
[SourceQuality "1"]
[TimeControl "5400+30"]

1. d4 {[%emt 0:03:30]} Nf6 {[%emt 0:00:30]} 2. Nc3 {[%emt 0:00:30]} d5 {[%emt 0:00:30]} 3. Bf4 {[%emt 0:00:00]} e6 {[%emt 0:01:30]} 4. Nb5 {[%emt 0:00:00]} Bb4+ {[%emt 0:02:30]} (4... Na6 5. e3 Be7 6. Nf3 O-O 7. Bd3 c6 8. Nc3 Nb4 9. h3 Nxd3+ 10. cxd3 b6 11. O-O Bb7 {0-1 (40) Rapport,R (2731)-Giri,A (2783) Wijk aan Zee 2019}) 5. c3 {[%emt 0:00:30]} Ba5 {[%emt 0:00:00]} 6. Qa4 {[%emt 0:10:30] D00: 1 d4 d5: Unusual lines} Nc6 {[%emt 0:01:00]} 7. b4 $146 {[%emt 0:00:30]} (7. e3 $15) ({Predecessor:} 7. Qc2 a6 8. Na3 Nxd4 9. Qa4+ Nc6 10. b4 Bb6 11. b5 Ne7 {1-0 (36) Kruszynski,K-Strzelczyk,A Wroclaw 2007}) 7... Bb6 {[%emt 0:00:00]} 8. e3 {[%emt 0:02:30]} Bd7 {[%emt 0:01:00]} 9. Qb3 {[%emt 0:02:30]} O-O {[%emt 0:01:30]} 10. Na3 {[%emt 0:03:30]} Ne7 {[%emt 0:04:30]} 11. Nf3 {[%emt 0:00:30]} Ng6 {[%emt 0:00:30]} 12. Bg3 {[%emt 0:00:30]} c6 {[%emt 0:02:30]} 13. Nc2 {[%emt 0:02:30]} a5 {[%emt 0:00:30]} 14. a4 {[%emt 0:00:30]} Ne4 {[%emt 0:04:30]} 15. Bd3 {[%emt 0:01:30]} f5 {[%emt 0:03:30]} 16. Ne5 {[%emt 0:01:30]} Nxe5 {[%emt 0:07:30]} 17. Bxe5 {[%emt 0:01:30]} Qh4 {[%emt 0:01:30]} 18. g3 {[%emt 0:10:30]} Qh5 {[%emt 0:03:30]} 19. Be2 {[%emt 0:01:30]} Qe8 {[%emt 0:01:30]} 20. h4 {[%emt 0:05:30]} Qc8 {[%emt 0:09:30]} 21. f3 $14 {[%emt 0:01:30]} Nf6 {[%emt 0:01:30]} 22. Kf2 {[%emt 0:01:30]} Bc7 {[%emt 0:00:30]} 23. Rhb1 {[%emt 0:00:30]} b6 {[%emt 0:05:30]} 24. c4 {[%emt 0:08:30]} Bxe5 {[%emt 0:04:30]} 25. dxe5 {[%emt 0:00:30]} dxc4 {[%emt 0:00:30]} 26. Bxc4 {[%emt 0:01:30]} Nd5 {[%emt 0:00:30]} 27. bxa5 {[%emt 0:01:30]} bxa5 {[%emt 0:01:30]} 28. Nd4 {[%emt 0:08:30]} Qc7 {[%emt 0:05:30]} 29. f4 {[%emt 0:00:30]} Rab8 {[%emt 0:01:30]} 30. Qc2 {[%emt 0:02:30]} Rxb1 {[%emt 0:03:30]} 31. Rxb1 {[%emt 0:00:30]} c5 {[%emt 0:06:30]} 32. Bxd5 {[%emt 0:09:10]} exd5 {[%emt 0:01:30]} 33. e6 {[%emt 0:00:05]} Bc8 {[%emt 0:03:30]} 34. Rb5 {[%emt 0:00:15]} c4 {[%emt 0:01:30]} 35. Rxd5 {[%emt 0:00:38]} Bb7 {[%emt 0:01:30]} 36. Rxf5 {[%emt 0:00:27]} g6 {[%emt 0:04:13]} 37. Rxf8+ {[%emt 0:01:35]} Kxf8 {[%emt 0:00:04]} 38. h5 {[%emt 0:00:19]} Ba8 {[%emt 0:02:18]} 39. hxg6 {[%emt 0:00:28]} Qb7 {[%emt 0:00:20]} 40. Qf5+ {[%emt 0:00:14]} Kg8 {[%emt 0:00:42]} 41. Qf7+ {[%emt 0:00:31]} Qxf7 {[%emt 0:00:11]} 42. exf7+ {[%emt 0:00:06]} 1-0

[Event "TUR-ch Veterans 2020"]
[Site "Antalya-Belek"]
[Date "2020.01.24"]
[Round "8"]
[White "Tozaki, Halil"]
[Black "Yuksel, Mustafa"]
[Result "1/2-1/2"]
[ECO "E14"]
[WhiteElo "1880"]
[BlackElo "2004"]
[Annotator "NA RC"]
[PlyCount "84"]
[EventDate "2020.01.19"]
[EventCountry "TUR"]
[SourceTitle "playchess.com"]
[Source "ChessBase"]
[SourceQuality "1"]
[TimeControl "5400+30"]

1. d4 {[%emt 0:00:30]} Nf6 {[%emt 0:00:30]} 2. Nf3 {[%emt 0:00:30]} e6 {[%emt 0:00:00]} 3. c4 {[%emt 0:00:00]} Bb4+ {[%emt 0:00:00]} 4. Nbd2 {[%emt 0:00:00]} b6 {[%emt 0:00:30]} 5. a3 {[%emt 0:00:30]} Bxd2+ {[%emt 0:00:30]} 6. Qxd2 {[%emt 0:00:00]} Bb7 {[%emt 0:00:00]} 7. e3 {[%emt 0:00:00]} O-O {[%emt 0:00:00]} 8. Bd3 {[%emt 0:00:30]} d6 {[%emt 0:00:30]} 9. b4 {[%emt 0:00:30]} Nbd7 {[%emt 0:00:30]} 10. Bb2 {[%emt 0:00:00]} Qe7 {[%emt 0:05:30] E14: Queen's Indian: Classical Variation (4 e3)} (10... Ne4 11. Qc2 f5 12. Rc1 Ng5 13. d5 Nxf3+ 14. gxf3 Ne5 15. f4 Nf3+ 16. Kd1 exd5 17. Bxf5 Rxf5 18. Qxf5 {1-0 (33) Aloma Vidal,R (2389)-Sutovsky,E (2684) Caleta 2013}) 11. Qe2 {[%emt 0:05:00]} Ne4 {[%emt 0:06:30]} 12. O-O {[%emt 0:04:30]} f5 {[%emt 0:00:30]} 13. Nd2 {[%emt 0:00:30]} Nxd2 {[%emt 0:00:30]} 14. Qxd2 {[%emt 0:00:30] [#]} Rae8 $146 {[%emt 0:00:30]} ({Predecessor:} 14... c5 15. dxc5 dxc5 16. b5 Rad8 17. Rad1 Nf6 18. Qc3 Rd6 19. f3 Rfd8 20. Bc2 Rxd1 21. Rxd1 Rxd1+ 22. Bxd1 {½-½ (35) Muse,D (2370)-Hulak,K (2510) Sibenik 2010}) 15. f3 {[%emt 0:04:30]} Qg5 {[%emt 0:03:30]} 16. Rad1 {[%emt 0:02:30]} Nf6 {[%emt 0:10:30]} 17. Qe2 {[%emt 0:16:30]} Qh5 {[%emt 0:09:30]} 18. Qf2 {[%emt 0:01:30]} Nd7 {[%emt 0:05:30]} 19. Rc1 {[%emt 0:00:30]} c5 {[%emt 0:04:30]} 20. f4 {[%emt 0:04:30]} (20. dxc5 $16 bxc5 21. Bc2) 20... Nf6 $11 {[%emt 0:05:30]} 21. Qg3 {[%emt 0:02:30]} Qh6 {[%emt 0:03:30]} 22. Rcd1 {[%emt 0:06:30]} Be4 {[%emt 0:02:30]} 23. Be2 {[%emt 0:04:30]} Bc2 {[%emt 0:07:30]} 24. Rc1 {[%emt 0:00:30]} Be4 {[%emt 0:01:30]} 25. Bf3 {[%emt 0:00:30]} Rc8 {[%emt 0:01:30]} 26. dxc5 {[%emt 0:01:30]} bxc5 {[%emt 0:01:30]} 27. b5 {[%emt 0:01:30]} Kf7 {[%emt 0:04:30]} 28. Rfd1 {[%emt 0:00:30]} Rfd8 {[%emt 0:00:30]} 29. a4 {[%emt 0:03:30]} Qg6 {[%emt 0:05:30]} 30. Rd2 {[%emt 0:02:30]} Qxg3 {[%emt 0:00:30]} 31. hxg3 {[%emt 0:00:30]} Rd7 {[%emt 0:02:45]} 32. a5 {[%emt 0:01:30]} Ba8 {[%emt 0:00:35]} 33. Bxf6 {[%emt 0:01:30]} Kxf6 {[%emt 0:00:21]} 34. Rcd1 {[%emt 0:00:30]} Ke7 {[%emt 0:00:11]} 35. Kf2 {[%emt 0:01:30]} g6 {[%emt 0:02:45]} 36. Rh1 {[%emt 0:01:30]} h5 {[%emt 0:02:21]} 37. Rb1 {[%emt 0:02:30]} d5 {[%emt 0:01:44]} 38. Rbd1 {[%emt 0:01:30]} Rcd8 {[%emt 0:00:09]} 39. Ke2 {[%emt 0:00:30]} Bb7 {[%emt 0:00:23]} 40. Rd3 {[%emt 0:04:30]} Ba8 {[%emt 0:01:06]} 41. R3d2 {[%emt 0:00:30]} Bb7 {[%emt 0:00:12]} 42. a6 {[%emt 0:12:24]} Ba8 {[%emt 0:00:30]} 1/2-1/2

[Event "TUR-ch Veterans 2020"]
[Site "Antalya-Belek"]
[Date "2020.01.24"]
[Round "8"]
[White "Yildiz, Mustafa"]
[Black "Hatipoglu, Metin"]
[Result "0-1"]
[ECO "B41"]
[WhiteElo "1693"]
[BlackElo "1570"]
[Annotator "NA RC"]
[PlyCount "100"]
[EventDate "2020.01.19"]
[EventCountry "TUR"]
[SourceTitle "playchess.com"]
[Source "ChessBase"]
[SourceQuality "1"]
[TimeControl "5400+30"]

1. e4 {[%emt 0:04:30]} c5 {[%emt 0:00:30]} 2. Nf3 {[%emt 0:00:00]} e6 {[%emt 0:00:30]} 3. d4 {[%emt 0:03:00]} cxd4 {[%emt 0:00:30]} 4. Nxd4 {[%emt 0:00:30]} a6 {[%emt 0:00:00]} 5. c4 {[%emt 0:03:30]} Qc7 {[%emt 0:03:00]} 6. Bd3 {[%emt 0:07:30]} d6 {[%emt 0:03:30]} 7. O-O {[%emt 0:00:00]} Nd7 {[%emt 0:00:30]} 8. Nf3 {[%emt 0:11:00]} Ngf6 {[%emt 0:01:30]} 9. Be3 {[%emt 0:02:30]} b6 {[%emt 0:01:30]} 10. Nc3 {[%emt 0:00:30]} Bb7 {[%emt 0:00:30]} 11. Qc2 {[%emt 0:00:30]} Nc5 {[%emt 0:02:30]} 12. Bxc5 {[%emt 0:00:00]} bxc5 {[%emt 0:01:30]} 13. Qe2 {[%emt 0:03:00]} Nd7 {[%emt 0:08:30]} 14. Rfe1 {[%emt 0:05:30]} Rb8 {[%emt 0:01:30]} 15. Rac1 {[%emt 0:08:30]} Be7 {[%emt 0:01:30]} 16. h3 {[%emt 0:04:30]} O-O {[%emt 0:01:30]} 17. Bb1 {[%emt 0:04:30]} Bf6 {[%emt 0:02:30]} 18. Nd1 {[%emt 0:02:30]} Ne5 {[%emt 0:06:30]} 19. Ne3 {[%emt 0:02:30]} Nxf3+ {[%emt 0:05:30]} 20. gxf3 {[%emt 0:00:30]} Bc6 {[%emt 0:03:30]} 21. b3 {[%emt 0:00:00]} a5 {[%emt 0:02:30]} 22. Qd3 {[%emt 0:03:00]} g6 {[%emt 0:02:30]} 23. Ng4 {[%emt 0:01:30]} Bg5 {[%emt 0:01:30]} 24. Rcd1 {[%emt 0:06:30]} Rfd8 {[%emt 0:02:30]} 25. Qc3 {[%emt 0:00:30]} e5 {[%emt 0:03:30]} 26. Kg2 {[%emt 0:05:30]} Bb7 {[%emt 0:04:30]} 27. Rh1 {[%emt 0:01:30]} h5 {[%emt 0:05:30]} 28. Ne3 {[%emt 0:00:30]} Ra8 {[%emt 0:03:30]} 29. h4 {[%emt 0:00:30]} Bf6 {[%emt 0:04:30]} 30. Rdg1 {[%emt 0:01:55]} Qe7 {[%emt 0:02:30]} 31. Kf1 {[%emt 0:00:16]} Kf8 {[%emt 0:00:30]} 32. Ng2 {[%emt 0:01:19]} Rdb8 {[%emt 0:03:30]} 33. Qe3 {[%emt 0:01:34]} a4 {[%emt 0:00:30]} 34. f4 {[%emt 0:00:05]} axb3 {[%emt 0:00:30]} 35. fxe5 {[%emt 0:01:34]} bxa2 {[%emt 0:01:30]} 36. Bxa2 {[%emt 0:00:19]} Rxa2 {[%emt 0:00:30]} 37. exf6 {[%emt 0:00:24]} Qxf6 {[%emt 0:00:30]} 38. Nf4 {[%emt 0:01:22]} Bc6 {[%emt 0:03:21]} 39. Rg5 {[%emt 0:04:00]} Ra1+ {[%emt 0:02:50]} 40. Kg2 {[%emt 0:00:06]} Rxh1 {[%emt 0:00:00]} 41. Kxh1 {[%emt 0:00:34]} Re8 {[%emt 0:01:01]} 42. Nd5 {[%emt 0:01:57]} Bxd5 {[%emt 0:00:45]} 43. cxd5 {[%emt 0:00:11]} c4 {[%emt 0:00:35]} 44. f4 {[%emt 0:01:39]} Qb2 {[%emt 0:01:49]} 45. Rg1 {[%emt 0:01:37]} c3 {[%emt 0:02:04]} 46. f5 {[%emt 0:00:36]} Qd2 {[%emt 0:00:24]} 47. Qg3 {[%emt 0:00:52]} Rxe4 {[%emt 0:01:18]} 48. fxg6 {[%emt 0:00:40]} Qxd5 {[%emt 0:00:56]} 49. Kh2 {[%emt 0:02:04]} Re2+ {[%emt 0:01:18]} 50. Rg2 {[%emt 0:00:32]} Qxg2+ {[%emt 0:00:22]} 0-1